bitfinex/quotes_ETHUSD_20230102
["timestamp","ask_amount","ask_price","bid_price","bid_amount"]
[1672672499883,5.07124321,1218.3,1218.2,11.47002252]
[1672672500124,5.07124321,1218.3,1218.2,15.67885252]
[1672672500497,5.07124321,1218.3,1218.2,7.47002252]
[1672672500957,5.07124321,1218.3,1218.2,15.67885252]
[1672672501128,5.07124321,1218.3,1218.2,7.47002252]
[1672672501761,5.07124321,1218.3,1218.2,7.466489]
[1672672501966,5.07124321,1218.3,1218.2,11.466489]
[1672672502423,5.13724321,1218.4,1218.2,27.884149]
[1672672502613,4.31113476,1218.3,1218.2,19.675319]
[1672672503080,5.07124321,1218.3,1218.2,19.675319]
[1672672503460,5.13724321,1218.4,1218.2,19.675319]
[1672672503713,4.3111958,1218.3,1218.2,19.675319]
[1672672503896,5.07124321,1218.3,1218.2,19.675319]
[1672672504563,5.07124321,1218.3,1218.2,27.884149]
[1672672504775,5.07124321,1218.3,1218.2,19.675319]
[1672672505939,5.07124321,1218.3,1218.2,27.884149]
[1672672506146,5.07124321,1218.3,1218.2,19.675319]
[1672672506884,5.07124321,1218.3,1218.2,15.675319]
[1672672507095,5.07124321,1218.3,1218.2,11.466489]
[1672672507776,5.07124321,1218.3,1218.2,36.092979]
[1672672508187,5.07124321,1218.3,1218.2,15.675319]
[1672672508397,5.07124321,1218.3,1218.2,23.884149]
[1672672510135,4.31155029,1218.3,1218.2,23.884149]
[1672672510506,3.69514316,1218.3,1218.2,40.44392388]
[1672672511089,3.69514316,1218.3,1218.2,39.82742388]
[1672672511394,3.76114316,1218.4,1218.2,39.82742388]
[1672672511567,3.69514316,1218.4,1218.3,17.21128602]
[1672672511783,3.69514316,1218.4,1218.3,42.17738696]
[1672672511992,4.31155029,1218.4,1218.3,42.42977078]
[1672672512405,4.31155029,1218.4,1218.3,37.7823459]
[1672672512831,4.37755029,1218.5,1218.4,4.0]
[1672672513023,4.31155029,1218.5,1218.4,21.00634114]
[1672672513241,4.31155029,1218.5,1218.4,21.09750252]
[1672672515972,4.31155029,1218.5,1218.4,12.89002252]
[1672672516724,4.31155029,1218.5,1218.4,11.47002252]
[1672672520525,4.31155029,1218.5,1218.4,7.47002252]
[1672672521810,4.31155029,1218.5,1218.4,7.46658201]
[1672672522504,4.31155029,1218.5,1218.4,11.46658201]
[1672672522851,4.31155029,1218.5,1218.4,19.67406201]
[1672672523442,12.93887636,1218.7,1218.4,19.67406201]
[1672672523677,9.61229,1219.2,1218.4,19.67406201]
[1672672523678,0.3315833,1219.4,1218.9,8.2037]
[1672672523852,5.08222536,1219.2,1219.0,3.6161]
[1672672524065,4.67744136,1219.2,1219.1,33.24289]
[1672672524278,4.62744136,1219.2,1219.1,11.95616138]
[1672672524643,6.04644136,1219.2,1219.1,3.32116138]
[1672672524801,4.62744136,1219.2,1219.1,0.23]
[1672672525004,6.04044136,1219.2,1219.1,0.23]
[1672672525566,4.62744136,1219.2,1219.0,0.23]
[1672672525926,4.62744136,1219.2,1219.1,0.25238382]
[1672672526144,4.62744136,1219.2,1219.1,8.43277]
[1672672526478,4.62744136,1219.2,1219.1,8.52393138]
[1672672526832,4.62744136,1219.2,1219.1,11.52393138]
[1672672530151,4.62744136,1219.2,1219.1,19.72670138]
[1672672530297,4.62744136,1219.2,1219.1,11.52393138]
[1672672533930,4.62744136,1219.2,1219.1,19.72670138]
[1672672534144,4.62744136,1219.2,1219.1,3.32116138]
[1672672534461,4.62744136,1219.2,1219.1,7.37886114]
[1672672534614,4.62744136,1219.2,1219.1,23.87556252]
[1672672534987,4.62744136,1219.2,1219.1,15.67279252]
[1672672535555,4.62744136,1219.2,1219.1,23.87556252]
[1672672536220,4.62744136,1219.2,1219.1,32.07833252]
[1672672539689,4.62944136,1219.2,1219.1,32.07593477]
[1672672539876,4.62744136,1219.2,1219.1,32.07833252]
[1672672540330,4.62744136,1219.2,1219.1,23.87556252]
[1672672543720,4.62744136,1219.2,1219.1,32.07833252]
[1672672544451,4.62744136,1219.2,1219.1,32.33071634]
[1672672546513,4.62744136,1219.2,1219.1,33.75071634]
[1672672547813,4.62744136,1219.2,1219.1,42.38571634]
[1672672549314,4.62744136,1219.2,1219.1,42.38365049]
[1672672549624,8.25884,1219.7,1219.1,42.38365049]
[1672672549625,0.0063483,1220.3,1219.5,20.81874957]
[1672672549791,8.18976,1221.1,1220.8,1.40247596]
[1672672549986,27.37952,1221.1,1220.8,1.40247596]
[1672672550196,4.6151,1221.0,1220.8,1.40247596]
[1672672550468,4.0,1221.0,1220.8,10.03747596]
[1672672550715,4.0,1221.0,1220.8,1.49363734]
[1672672550845,3.7,1221.0,1220.8,9.54372596]
[1672672551032,0.6152,1220.9,1220.8,1.44363734]
[1672672551243,0.6151,1221.0,1220.8,1.35247596]
[1672672551499,8.80452,1221.1,1220.9,0.23]
[1672672551873,0.6151,1221.1,1220.9,0.23]
[1672672552139,0.6151,1221.1,1220.9,4.23]
[1672672552360,4.7386233,1221.3,1221.0,2.84]
[1672672552361,0.8046233,1221.3,1221.0,2.84]
[1672672552523,0.7386233,1221.3,1221.1,3.23]
[1672672552735,0.7386233,1221.3,1221.1,0.23]
[1672672552953,8.9266133,1221.3,1221.1,0.13]
[1672672553152,0.7386233,1221.3,1221.1,0.15253241]
[1672672553493,9.5416433,1221.3,1221.1,0.15253241]
[1672672553663,17.7296633,1221.3,1221.1,0.13]
[1672672553868,4.0,1221.2,1221.1,0.13]
[1672672554118,21.79332,1221.2,1221.1,0.13]
[1672672554326,0.8046233,1221.3,1221.1,0.13]
[1672672554538,9.5419733,1221.3,1221.1,0.13]
[1672672554969,13.0419733,1221.3,1221.1,0.13]
[1672672555145,21.2303233,1221.3,1221.1,0.13]
[1672672556603,21.2303233,1221.3,1221.0,9.67433138]
[1672672556870,0.7386233,1221.3,1221.0,17.86431138]
[1672672557060,8.9268133,1221.3,1221.0,9.67433138]
[1672672557283,17.1150033,1221.3,1221.0,9.67433138]
[1672672557976,25.3031933,1221.3,1221.0,9.67433138]
[1672672561363,25.3031933,1221.3,1221.0,13.82319252]
[1672672561769,25.3031933,1221.3,1221.0,9.67433138]
[1672672561770,30.27528763,1221.3,1221.0,9.67433138]
[1672672561978,5.401,1221.1,1221.0,0.09116138]
[1672672562247,38.15832,1221.1,1220.6,6.665]
[1672672562398,1.414,1221.0,1220.7,4.14886114]
[1672672562602,30.04799,1221.1,1220.7,4.14886114]
[1672672562911,24.57201,1220.9,1220.7,4.14886114]
[1672672564397,24.57401,1220.9,1220.7,4.14886114]
[1672672564616,24.57201,1220.9,1220.7,4.14886114]
[1672672571857,4.0,1220.8,1220.7,4.14886114]
[1672672572010,28.57402,1220.8,1220.7,4.14886114]
[1672672573538,33.46981296,1220.8,1220.6,0.09116138]
[1672672573711,33.46981296,1220.8,1220.2,17.17260382]
[1672672573712,32.35381296,1220.8,1220.2,20.34096138]
[1672672574064,32.35381296,1220.8,1220.4,4.0]
[1672672574281,32.35381296,1220.8,1220.4,8.14886114]
[1672672574433,32.35381296,1220.8,1220.4,8.24002252]
[1672672574660,32.35381296,1220.8,1220.4,4.24002252]
[1672672574857,32.35381296,1220.8,1220.4,4.14886114]
[1672672575117,8.80654,1220.8,1220.5,4.15150799]
[1672672575321,8.80654,1220.8,1220.6,4.14886114]
[1672672575695,16.99788,1220.8,1220.6,4.14886114]
[1672672576391,25.18922,1220.8,1220.5,0.09116138]
[1672672576553,25.18922,1220.8,1220.4,3.0]
[1672672576554,4.0,1220.7,1220.4,3.0]
[1672672576777,8.19269,1220.6,1220.4,7.14886114]
[1672672576989,6.02118596,1220.6,1220.4,7.24002252]
[1672672578007,14.21387596,1220.6,1220.4,7.24002252]
[1672672578333,22.40656596,1220.6,1220.4,7.24002252]
[1672672578545,17.57781,1220.7,1220.4,15.43404252]
[1672672578907,17.51181,1220.7,1220.4,15.43404252]
[1672672579111,17.51181,1220.7,1220.4,7.24002252]
[1672672579486,25.70423,1220.7,1220.5,1.54940233]
[1672672580534,17.51173,1220.7,1220.5,1.54940233]
[1672672581525,25.70415,1220.7,1220.5,1.54940233]
[1672672582558,29.213058,1220.7,1220.5,1.54940233]
[1672672582799,5.127,1220.6,1220.5,1.54940233]
[1672672583022,29.70507,1220.6,1220.5,1.54940233]
[1672672583509,29.70507,1220.6,1220.3,0.09116138]
[1672672583686,1.116,1220.5,1220.3,3.09116138]
[1672672583902,5.0,1220.4,1220.3,3.0]
[1672672584159,5.0,1220.4,1220.3,45.43098498]
[1672672584325,5.0,1220.4,1220.3,41.83850634]
[1672672584729,5.0,1220.4,1220.3,25.44910634]
[1672672584986,5.0,1220.4,1220.3,24.32210634]
[1672672585208,5.0,1220.4,1220.3,7.24002252]
[1672672585608,8.25938,1220.5,1220.3,7.24002252]
[1672672585814,8.19338,1220.5,1220.3,7.24002252]
[1672672586264,8.19338,1220.5,1220.3,11.24002252]
[1672672586471,8.19338,1220.5,1220.3,7.24002252]
[1672672586650,8.19338,1220.5,1220.3,3.09116138]
[1672672586855,0.066,1220.6,1220.3,7.14886114]
[1672672587254,1.7422,1220.8,1220.4,4.15150821]
[1672672587255,16.38478,1220.7,1220.4,4.15150821]
[1672672587413,16.38542,1220.6,1220.5,4.14886114]
[1672672588017,24.57813,1220.6,1220.4,0.09116138]
[1672672588269,25.70113,1220.6,1220.3,3.0]
[1672672588460,25.70113,1220.6,1220.3,7.14886114]
[1672672588763,25.70113,1220.6,1220.3,11.24002252]
[1672672588978,25.70113,1220.6,1220.3,7.24002252]
[1672672589223,25.70113,1220.6,1220.3,11.24002252]
[1672672589447,25.70113,1220.6,1220.3,7.24002252]
[1672672589770,29.097056,1220.6,1220.3,7.24002252]
[1672672590060,29.04790388,1220.6,1220.3,7.24002252]
[1672672590432,29.04790388,1220.6,1220.3,3.09116138]
[1672672590650,29.04790388,1220.6,1220.3,3.0]
[1672672591462,29.04790388,1220.6,1220.3,7.0]
[1672672591714,29.04790388,1220.6,1220.3,3.09116138]
[1672672591937,29.04790388,1220.6,1220.3,3.0]
[1672672594320,4.0,1220.5,1220.3,3.0]
[1672672594531,8.19403,1220.4,1220.2,3.09380888]
[1672672594737,16.38806,1220.4,1220.2,3.0026475]
[1672672594953,24.58209,1220.4,1220.2,3.0026475]
[1672672596110,24.58209,1220.4,1220.2,3.0]
[1672672596348,24.57948927,1220.4,1220.2,3.0]
[1672672596671,4.0,1220.3,1220.1,0.09116138]
[1672672596820,4.0,1220.3,1219.9,11.10186138]
[1672672596821,24.5849,1220.3,1219.9,11.10186138]
[1672672597035,24.5849,1220.3,1220.0,4.0]
[1672672598098,24.5349,1220.3,1220.0,4.0]
[1672672598318,29.11427293,1220.3,1219.9,7.24002252]
[1672672598506,29.11427293,1220.3,1220.0,3.0]
[1672672599298,20.91900293,1220.3,1220.0,3.0]
[1672672599608,29.11427293,1220.3,1220.0,3.0]
[1672672601181,29.11427293,1220.3,1219.9,4.24002252]
[1672672601517,29.11427293,1220.3,1219.9,8.14886114]
[1672672601829,29.11427293,1220.3,1219.9,4.24002252]
[1672672602019,29.11427293,1220.3,1219.9,8.14886114]
[1672672602351,29.11427293,1220.3,1219.9,8.24002252]
[1672672604419,29.11427293,1220.3,1219.9,4.24002252]
[1672672604670,29.11427293,1220.3,1219.8,9.75216138]
[1672672604990,29.11427293,1220.3,1219.9,7.0]
[1672672605215,29.11427293,1220.3,1219.9,7.09116138]
[1672672605565,29.11427293,1220.3,1219.9,3.09116138]
[1672672605818,4.0,1220.2,1219.9,3.0]
[1672672606035,16.39208,1220.1,1219.9,3.0]
[1672672607930,24.58812,1220.1,1219.9,3.0]
[1672672609489,16.39208,1220.1,1219.9,3.0]
[1672672610341,9.99339,1220.2,1219.9,3.0]
[1672672610505,0.6815,1220.3,1220.0,0.00264793]
[1672672610713,0.6815,1220.3,1220.0,8.19899793]
[1672672610714,8.81031,1220.3,1220.0,8.19899793]
[1672672610976,17.00512,1220.3,1220.0,12.29015931]
[1672672611395,25.19993,1220.3,1220.0,0.09116138]
[1672672611548,25.19993,1220.3,1219.9,23.63413252]
[1672672612387,5.12,1220.1,1219.9,0.09116138]
[1672672612609,25.70616,1220.0,1219.6,19.43656138]
[1672672612824,25.70616,1220.0,1219.7,4.04886114]
[1672672613335,25.70616,1220.0,1219.7,8.04886114]
[1672672613540,25.70616,1220.0,1219.7,8.14002252]
[1672672614300,25.70616,1220.0,1219.8,4.0]
[1672672616640,24.59016,1220.0,1219.8,4.0]
[1672672618925,1.25883038,1220.4,1219.8,4.0]
[1672672618926,8.19067,1221.0,1220.1,8.635]
[1672672619254,0.126,1221.1,1220.4,25.02241]
[1672672619462,40.37398763,1221.3,1220.6,33.21156]
[1672672619463,0.6151,1221.0,1220.6,33.21156]
[1672672619676,0.6151,1221.1,1220.6,37.30272138]
[1672672619912,0.6151,1221.1,1220.6,37.5551052]
[1672672620432,0.6151,1221.1,1220.8,4.0]
[1672672620585,0.6151,1221.1,1220.8,12.19117]
[1672672620796,0.6151,1221.1,1220.8,12.28233138]
[1672672621008,0.6151,1221.1,1220.8,22.28233138]
[1672672621336,0.6151,1221.1,1220.8,14.09116138]
[1672672621545,0.066,1221.2,1220.9,0.23]
[1672672621763,1.3536233,1221.3,1221.0,16.38]
[1672672621969,0.7386233,1221.3,1221.1,0.23]
[1672672624287,0.7386233,1221.3,1221.1,1.32706458]
[1672672625105,0.7386233,1221.3,1221.1,9.51627458]
[1672672625349,0.7386233,1221.3,1221.1,17.79676596]
[1672672626360,0.7386233,1221.3,1221.2,9.27086114]
[1672672626512,0.7386233,1221.3,1221.2,15.87502252]
[1672672626728,0.7386233,1221.3,1221.2,7.47002252]
[1672672627055,0.7386233,1221.3,1221.2,40.92338634]
[1672672627665,0.7386233,1221.3,1221.2,32.73472634]
[1672672628993,0.7386233,1221.3,1221.2,40.92338634]
[1672672629970,0.7386233,1221.3,1221.2,24.54606634]
[1672672630212,0.7386233,1221.3,1221.2,32.73472634]
[1672672630359,0.7386233,1221.3,1221.2,40.92338634]
[1672672630774,0.7386233,1221.3,1221.2,7.49240634]
[1672672631047,0.7386233,1221.3,1221.2,15.68106634]
[1672672631418,0.7406233,1221.3,1221.2,15.67866859]
[1672672631628,0.7386233,1221.3,1221.2,15.68106634]
[1672672632603,0.7386233,1221.3,1221.2,15.91106634]
[1672672633005,0.7386233,1221.3,1221.2,7.72240634]
[1672672633214,0.7386233,1221.3,1221.2,7.49240634]
[1672672633403,0.7386233,1221.3,1221.2,7.24002252]
[1672672633613,0.7386233,1221.3,1221.2,23.61734252]
[1672672633937,0.7386233,1221.3,1221.2,32.05838634]
[1672672634558,0.7386233,1221.3,1221.2,23.86972634]
[1672672634896,18.5156033,1221.3,1221.2,0.09116138]
[1672672635103,2.1396233,1221.3,1221.0,12.18955]
[1672672635318,2.1396233,1221.3,1221.0,24.62000252]
[1672672635627,2.1396233,1221.3,1221.1,12.33784114]
[1672672635628,0.7386233,1221.3,1221.1,12.33784114]
[1672672635961,0.7386233,1221.3,1221.2,4.14886114]
[1672672636561,0.7386233,1221.3,1221.2,12.33752114]
[1672672636772,0.7386233,1221.3,1221.2,12.42868252]
[1672672636981,0.7386233,1221.3,1221.2,4.24002252]
[1672672637235,0.7386233,1221.3,1221.2,4.14886114]
[1672672639424,0.7386233,1221.3,1221.2,12.33752114]
[1672672639638,0.7386233,1221.3,1221.2,4.24002252]
[1672672639829,0.7386233,1221.3,1221.2,4.14886114]
[1672672640055,0.7386233,1221.3,1221.2,8.14886114]
[1672672640288,1e-08,1221.3,1221.2,41.44100252]
[1672672641343,1e-08,1221.3,1221.2,4.24002252]
[1672672641561,1e-08,1221.3,1221.2,20.75618114]
[1672672641773,1e-08,1221.3,1221.2,29.03600252]
[1672672641982,1e-08,1221.3,1221.2,12.65868252]
[1672672642309,1e-08,1221.3,1221.2,4.47002252]
[1672672642615,1e-08,1221.3,1221.2,4.37886114]
[1672672645600,1e-08,1221.3,1221.2,0.23]
[1672672645816,16.37598001,1221.3,1221.1,3.0]
[1672672646044,16.37598001,1221.3,1221.1,11.14886114]
[1672672646373,27.02691201,1221.3,1221.1,0.09116138]
[1672672646599,28.15391201,1221.3,1220.9,19.32954138]
[1672672646814,28.15391201,1221.3,1220.9,15.28832252]
[1672672647032,1.127,1221.2,1220.9,15.28832252]
[1672672647563,25.69447,1221.2,1220.9,11.13946138]
[1672672647776,5.0,1221.1,1220.9,0.09116138]
[1672672647951,13.18943,1221.1,1220.8,7.09116138]
[1672672648161,13.18943,1221.1,1220.9,3.0]
[1672672648518,5.0,1221.1,1220.9,3.0]
[1672672649296,21.37866,1221.1,1220.8,0.09116138]
[1672672649564,21.37866,1221.1,1220.7,0.09116138]
[1672672649565,33.30520602,1221.1,1220.7,0.09116138]
[1672672649716,1.116,1221.0,1220.7,4.14886114]
[1672672649927,29.57201,1220.9,1220.7,4.14886114]
[1672672650587,29.57201,1220.9,1220.6,11.22756138]
[1672672650808,29.57201,1220.9,1220.6,0.09116138]
[1672672651015,29.57201,1220.9,1220.6,3.0]
[1672672651016,30.69701,1220.9,1220.6,3.0]
[1672672651230,30.69701,1220.9,1220.5,4.09116138]
[1672672651473,34.703945,1220.9,1220.5,8.14886114]
[1672672651773,34.703945,1220.9,1220.5,0.09116138]
[1672672651963,4.0,1220.8,1220.4,12.28478138]
[1672672652138,13.19215,1220.7,1220.4,8.24002252]
[1672672652346,32.31505943,1220.7,1220.4,0.09116138]
[1672672652607,32.31505943,1220.7,1220.2,0.09116138]
[1672672652608,1.123,1220.5,1220.2,0.09116138]
[1672672652780,1.127,1220.6,1220.0,10.24656138]
[1672672652987,16.38806,1220.4,1220.1,4.0]
[1672672653213,24.58209,1220.4,1220.1,8.14886114]
[1672672653555,25.70909,1220.4,1220.1,0.09116138]
[1672672653725,5.0,1220.3,1220.0,10.24656138]
[1672672653989,13.19504,1220.3,1220.1,4.0]
[1672672654134,32.66239,1220.3,1220.0,0.09116138]
[1672672654498,32.66239,1220.3,1219.8,3.023]
[1672672654714,33.27789,1220.3,1219.8,15.36978114]
[1672672654865,33.27789,1220.3,1220.2,4.14886114]
[1672672654866,5.0,1220.3,1220.2,4.14886114]
[1672672655075,10.2748,1220.8,1220.5,0.77904226]
[1672672655340,8.25681,1220.9,1220.5,4.9279034]
[1672672655667,10.562308,1220.9,1220.5,4.9279034]
[1672672655967,14.562308,1220.9,1220.5,8.9279034]
[1672672656182,14.562308,1220.9,1220.5,5.2714486]
[1672672656355,22.753118,1220.9,1220.5,1.12258746]
[1672672656566,22.753118,1220.9,1220.6,0.23]
[1672672656776,23.876118,1220.9,1220.6,0.23]
[1672672657212,5.0,1220.7,1220.6,0.23]
[1672672657652,5.0,1220.7,1220.6,1.593]
[1672672657809,5.0,1220.7,1220.6,20.97838]
[1672672658016,5.0,1220.7,1220.6,21.06954138]
[1672672658700,5.0,1220.7,1220.6,33.66347634]
[1672672658860,5.0,1220.7,1220.6,25.47078634]
[1672672659065,5.0,1220.7,1220.6,17.27809634]
[1672672659303,5.0,1220.7,1220.6,9.08540634]
[1672672659718,16.44932,1220.8,1220.6,9.08540634]
[1672672660073,8.25705,1220.9,1220.6,4.68416138]
[1672672660245,8.19105,1220.9,1220.6,4.593]
[1672672660593,28.058143,1220.9,1220.6,3.23]
[1672672660806,28.058143,1220.9,1220.6,0.23]
[1672672660980,29.185143,1220.9,1220.6,0.23]
[1672672661805,5.0,1220.7,1220.6,0.23]
[1672672662177,5.0,1220.7,1220.6,0.18]
[1672672663332,13.19202,1220.7,1220.6,0.18]
[1672672663912,21.38404,1220.7,1220.6,0.18]
[1672672664118,29.57606,1220.7,1220.6,0.18]
[1672672664741,33.420953,1220.7,1220.5,0.77904226]
[1672672666221,1.127,1220.6,1220.5,0.77904226]
[1672672666449,32.44737,1220.6,1220.5,0.77904226]
[1672672668111,7.8693,1220.6,1220.5,0.77904226]
[1672672668317,6.7423,1220.6,1220.5,0.77904226]
[1672672670428,6.7423,1220.6,1220.5,8.97240226]
[1672672670669,6.7423,1220.6,1220.5,0.87020364]
[1672672670890,6.7423,1220.6,1220.5,0.77904226]
[1672672671080,5.0,1220.6,1220.5,25.35912226]
[1672672671295,5.0,1220.6,1220.5,25.45028364]
[1672672671664,5.0,1220.6,1220.5,25.68028364]
[1672672672107,5.0,1220.6,1220.5,9.29356364]
[1672672672533,5.0,1220.6,1220.5,21.48692364]
[1672672672739,5.0,1220.6,1220.5,13.29356364]
[1672672673894,5.0,1220.6,1220.5,34.0815286]
[1672672674110,5.0,1220.6,1220.5,41.96794792]
[1672672674340,5.0,1220.6,1220.5,37.0815286]
[1672672675205,0.066,1220.7,1220.5,37.0815286]
[1672672675546,20.15307,1221.0,1220.6,35.95693114]
[1672672675718,5.0,1220.7,1220.6,23.70654138]
[1672672676045,0.066,1220.8,1220.6,31.89923138]
[1672672676256,23.889244,1221.0,1220.6,31.89923138]
[1672672676412,15.699074,1221.0,1220.6,31.89923138]
[1672672677265,23.274034,1221.0,1220.6,31.89923138]
[1672672678793,31.464094,1221.0,1220.6,31.89923138]
[1672672679577,31.464094,1221.0,1220.6,23.70654138]
[1672672680138,31.464094,1221.0,1220.6,31.89923138]
[1672672681362,23.274034,1221.0,1220.6,31.89923138]
[1672672682805,23.274034,1221.0,1220.6,23.70654138]
[1672672682806,31.464034,1221.0,1220.6,23.70654138]
[1672672683819,31.464034,1221.0,1220.6,7.32116138]
[1672672684043,39.654034,1221.0,1220.6,7.32116138]
[1672672684461,4.95,1220.7,1220.6,23.70651138]
[1672672684705,4.95,1220.7,1220.6,31.89920138]
[1672672685072,4.95,1220.7,1220.6,3.32116138]
[1672672685300,4.95,1220.7,1220.6,3.23]
[1672672685663,4.95,1220.7,1220.6,7.23]
[1672672685872,4.95,1220.7,1220.6,15.51385138]
[1672672686492,4.95,1220.7,1220.6,3.32116138]
[1672672686720,4.95,1220.7,1220.6,3.23]
[1672672686870,4.95,1220.7,1220.6,19.61538]
[1672672687083,4.952,1220.7,1220.6,27.89683363]
[1672672687292,4.952,1220.7,1220.6,27.89923138]
[1672672687293,4.95,1220.7,1220.6,27.89923138]
[1672672689422,5.066,1220.8,1220.6,27.89923138]
[1672672689736,5.0,1220.8,1220.6,27.89923138]
[1672672694650,5.0,1220.8,1220.6,32.04809252]
[1672672694919,5.0,1220.8,1220.6,32.30047634]
[1672672695077,5.0,1220.8,1220.7,4.0]
[1672672695288,5.0,1220.8,1220.7,28.57606]
[1672672695581,5.0,1220.8,1220.7,28.89722138]
[1672672696960,5.0,1220.8,1220.7,24.89722138]
[1672672704586,5.0,1220.8,1220.7,24.84722138]
[1672672710869,4.95,1220.8,1220.7,24.84722138]
[1672672711790,4.95,1220.8,1220.7,0.32116138]
[1672672712158,4.95,1220.8,1220.7,0.23]
[1672672712159,5.0,1220.8,1220.7,0.23]
[1672672714567,5.002,1220.8,1220.7,0.23]
[1672672714786,5.0,1220.8,1220.7,0.23]
[1672672715407,5.0,1220.8,1220.6,11.28361138]
[1672672715620,16.044018,1220.8,1220.6,0.09116138]
[1672672715773,16.044018,1220.8,1220.5,25.44931364]
[1672672715774,7.852678,1220.8,1220.5,25.44931364]
[1672672715982,7.852678,1220.8,1220.5,17.25623364]
[1672672717054,7.852678,1220.8,1220.6,0.23]
[1672672717559,7.852678,1220.8,1220.6,8.42265]
[1672672717892,7.852678,1220.8,1220.6,8.51381138]
[1672672719048,7.852678,1220.8,1220.6,0.32116138]
[1672672719254,7.852678,1220.8,1220.6,0.23]
[1672672719255,32.427098,1220.8,1220.6,0.23]
[1672672719679,5.0,1220.7,1220.5,0.77904226]
[1672672719890,8.19269,1220.6,1220.5,0.77904226]
[1672672720098,9.31969,1220.6,1220.5,0.77904226]
[1672672720562,1.127,1220.6,1220.5,0.77904226]
[1672672720712,6.127,1220.6,1220.5,0.77904226]
[1672672720921,31.83207,1220.6,1220.5,0.77904226]
[1672672721241,36.16535298,1220.6,1220.5,0.77904226]
[1672672721656,4.0,1220.5,1220.2,0.09116138]
[1672672721886,4.0,1220.5,1220.1,38.35581]
[1672672721887,1.127,1220.3,1220.1,8.28695138]
[1672672722073,1.3523,1220.3,1220.1,8.28695138]
[1672672722285,1.126,1220.4,1220.1,28.67903138]
[1672672722812,1.126,1220.4,1220.2,4.0]
[1672672723057,1.126,1220.4,1220.3,8.1947]
[1672672723247,1.126,1220.4,1220.3,8.28586138]
[1672672723706,1.126,1220.4,1220.3,16.48056138]
[1672672724501,1.7424,1220.5,1220.3,24.67526138]
[1672672725234,1.127,1220.5,1220.3,24.67526138]
[1672672727110,2.99415,1220.5,1220.3,8.28573138]
[1672672727562,2.99415,1220.5,1220.3,16.48043138]
[1672672727770,2.99415,1220.5,1220.3,8.28573138]
[1672672728545,1.86715,1220.5,1220.3,16.48043138]
[1672672729447,1.86715,1220.5,1220.3,8.28573138]
[1672672730017,1.86715,1220.5,1220.3,8.28333363]
[1672672730018,1.86915,1220.5,1220.3,8.28333363]
[1672672730169,10.06057,1220.5,1220.3,0.09116138]
[1672672730377,10.06057,1220.5,1220.2,24.67597138]
[1672672730645,10.06057,1220.5,1220.3,4.23]
[1672672730959,10.06057,1220.5,1220.3,0.23]
[1672672731850,10.06057,1220.5,1220.3,4.23]
[1672672732114,10.06057,1220.5,1220.3,0.23]
[1672672733490,1.86715,1220.5,1220.3,0.23]
[1672672733984,1.86715,1220.5,1220.3,4.23]
[1672672734159,1.86715,1220.5,1220.3,0.23]
[1672672734368,1.86715,1220.5,1220.3,4.23]
[1672672734828,1.86715,1220.5,1220.3,20.61933]
[1672672735042,1.86715,1220.5,1220.3,12.51579138]
[1672672736437,12.5445,1220.6,1220.3,28.90519138]
[1672672736589,12.4785,1220.6,1220.3,28.90519138]
[1672672739746,20.67135,1220.6,1220.3,20.71049138]
[1672672740171,20.05605,1220.6,1220.3,20.71420966]
[1672672740622,20.05605,1220.6,1220.4,1.47546262]
[1672672741102,9.31985,1220.6,1220.4,1.47546262]
[1672672743338,21.50168998,1220.6,1220.4,1.47546262]
[1672672744166,29.69453998,1220.6,1220.4,1.47546262]
[1672672744412,29.69453998,1220.6,1220.4,1.47341453]
[1672672747654,1.123,1220.5,1220.4,1.47341453]
[1672672747819,9.31636,1220.5,1220.4,1.47341453]
[1672672748030,12.404765,1220.5,1220.4,1.47341453]
[1672672748527,15.404765,1220.5,1220.4,1.47341453]
[1672672748917,12.404765,1220.5,1220.4,1.47341453]
[1672672750351,20.598125,1220.5,1220.4,1.47341453]
[1672672753289,12.404765,1220.5,1220.4,1.47341453]
[1672672753716,28.791485,1220.5,1220.4,1.47341453]
[1672672758940,29.918485,1220.5,1220.4,1.47341453]
[1672672759102,4.0,1220.4,1220.1,0.09116138]
[1672672759311,4.0,1220.4,1219.8,0.09116138]
[1672672759312,2.254,1220.2,1219.8,0.09116138]
[1672672759523,1.127,1220.1,1219.8,12.19804]
[1672672759816,1.127,1220.1,1219.8,12.28920138]
[1672672759985,1.127,1220.1,1219.9,4.0]
[1672672760992,2.178542,1220.1,1219.9,4.0]
[1672672762315,2.178542,1220.1,1219.9,12.19737]
[1672672762519,2.178542,1220.1,1219.9,12.28853138]
[1672672763044,2.178542,1220.1,1219.9,4.09116138]
[1672672763209,10.374592,1220.1,1219.9,4.0]
[1672672763823,18.570642,1220.1,1219.8,4.09116138]
[1672672764073,18.570642,1220.1,1219.7,35.3303109]
[1672672764074,1.127,1219.9,1219.7,0.51056228]
[1672672764285,1.127,1219.8,1219.6,8.28997138]
[1672672764516,1.127,1219.8,1219.6,0.09116138]
[1672672764847,25.7214,1219.8,1219.6,4.0]
[1672672765189,9.32506,1219.8,1219.6,4.0]
[1672672765403,1.127,1219.8,1219.6,4.0]
[1672672765637,1.127,1219.8,1219.6,20.39862]
[1672672765845,1.127,1219.8,1219.6,20.48978138]
[1672672766479,1.3524,1219.9,1219.6,20.48978138]
[1672672766693,1.3524,1219.9,1219.7,0.23]
[1672672767031,1.3524,1219.9,1219.7,8.42869]
[1672672767249,1.3524,1219.9,1219.7,8.51985138]
[1672672767465,1.3524,1219.9,1219.7,0.32116138]
[1672672767677,0.066,1220.0,1219.7,24.82613]
[1672672767982,21.115632,1220.1,1219.8,12.198]
[1672672768195,21.115632,1220.1,1219.8,4.09116138]
[1672672768349,29.311952,1220.1,1219.8,4.0]
[1672672768812,29.311952,1220.1,1219.7,24.91729138]
[1672672769026,29.311952,1220.1,1219.8,8.19791]
[1672672769236,29.311952,1220.1,1219.8,12.28907138]
[1672672770031,29.311952,1220.1,1219.8,8.28907138]